Cogmind - Beta 15 @@@ ROGUE MODE // 2025.08.17 @ 15:33:51 Player: Cracklepappy Result: Destroyed by B-75 Beast with Magnetic Acceleration Cannon Performance ------------- Evolutions (4) 2000 Regions Visited (12) 2400 Robots Destroyed (233) 1165 Value Destroyed (5203) 5203 Prototype IDs (33) 660 Alien Tech Used (0) 0 Bonus (1163) 1163 TOTAL SCORE: 12591 Bonus ------- Follower Combat Kills 270 Registered with UFD 300 Met Optimus in HQ 500 Destroyed Z-Imprinter 1000 Friendly Fire -907 Cogmind --------- Core Integrity 0/850 Matter 265/300 Energy 52/100 System Corruption 0% Temperature Cool (12) Movement Core (850) Ox16 Location -5/Proximity Caves Parts ------- > --- POWER (2) -------- (None) > --- PROPULSION (6) --- (None) > --- UTILITY (5) ------ Experimental Heat Sink High-capacity Storage Unit Zionite Weapon Casing > --- WEAPON (2) ------- Helical Railgun Companion Sword > --- INVENTORY (20) --- Wheel High-capacity Matter Pod (200) Rocket Booster Rocket Booster Rocket Booster Zionite Weapon Casing Enhanced Scrap Shield Relay Coupler [Programmer] (78) Relay Coupler [Programmer] (72) Relay Coupler [Programmer] (68) Tech Extrapolator Zionite Phaser-S KN-7UR's Autopenetrator Disruptor Cannon Advanced Plasma Cannon Improved Proton Missile Launcher Heavy Rocket Launcher Plasma Cutter CPS Tube (2) Peak State ------------ > --- POWER ------------ Antimatter Reactor Zionite Light DM Reactor > --- PROPULSION ------- (None) > --- UTILITY ---------- Experimental Heat Sink High-capacity Storage Unit Spectral Analyzer Enhanced Scrap Shield > --- WEAPON ----------- KN-7UR's Autopenetrator Advanced Plasma Cannon > --- INVENTORY -------- Wheel Experimental Heat Sink High-capacity Matter Pod Rocket Booster Rocket Booster Rocket Booster Zionite Weapon Casing Zionite Weapon Casing Relay Coupler [Programmer] Relay Coupler [Programmer] Relay Coupler [Programmer] Tech Extrapolator Zionite Phaser-S Disruptor Cannon Helical Railgun Improved Proton Missile Launcher Heavy Rocket Launcher Plasma Cutter CPS Tube Companion Sword [Rating: 68] Favorites ----------- Power Heavy Ion Engine Engine Heavy Ion Engine Power Core Fission Core Reactor Zionite Light DM Reactor Propulsion Wheel Wheel Wheel Utility Spectral Analyzer Device Advanced Cooling System Storage High-capacity Storage Unit Processor Spectral Analyzer Hackware Improved Hacking Suite Protection Layered Medium Armor Plating Weapon Companion Sword Energy Gun Beamcaster Energy Cannon Advanced Plasma Cannon Ballistic Gun Shotgun Ballistic Cannon Improved Light Cannon Launcher Heavy Rocket Launcher Special Weapon Plasma Cutter Impact Weapon Great Maul Slashing Weapon Companion Sword Special Melee Weapon Datajack Build | -11 -10 -10 -9 -9 -9 -9 -6 -6 -6 -6 -6 -5 ------- Run | Yrd Mat Min Mat Sto Rec Scr Fac Low Low Zio Dee Pro Slots Evolved 8 | . . . 2 . . . 6 . . . . . Power 1 | . . . . . . . 1 . . . . . Propulsion 4 | . . . 2 . . . 2 . . . . . Utility 3 | . . . . . . . 3 . . . . . Weapon . | . . . . . . . . . . . . . Parts Attached 137 | 13 18 5 17 8 1 9 30 3 4 17 11 1 Power 19 | 2 2 . 1 . . . 7 . . 5 2 . Engine 12 | 2 2 . 1 . . . 5 . . 2 . . Core 5 | . . . . . . . 2 . . 3 . . Reactor 2 | . . . . . . . . . . . 2 . Propulsion 38 | 5 5 3 8 5 . 1 8 . 2 1 . . Treads . | . . . . . . . . . . . . . Leg . | . . . . . . . . . . . . . Wheel 38 | 5 5 3 8 5 . 1 8 . 2 1 . . Hover . | . . . . . . . . . . . . . Flight . | . . . . . . . . . . . . . Utility 44 | 4 5 2 4 1 . 2 12 2 . 6 5 1 Device 22 | 3 3 2 4 . . 1 2 1 . 4 1 1 Storage 9 | 1 1 . . 1 . 1 2 . . 1 2 . Processor 3 | . . . . . . . 3 . . . . . Hackware 1 | . . . . . . . 1 . . . . . Protection 9 | . 1 . . . . . 4 1 . 1 2 . Artifact . | . . . . . . . . . . . . . Weapon 36 | 2 6 . 4 2 1 6 3 1 2 5 4 . Energy Gun 7 | 2 . . . . . 1 . . . 1 3 . Energy Cannon 4 | . . . . . . . 2 1 1 . . . Ballistic Gun 8 | . 5 . . . . 2 . . . 1 . . Ballistic Cannon 6 | . 1 . 4 1 . . . . . . . . Launcher 3 | . . . . . . . . . 1 2 . . Special Weapon 4 | . . . . 1 . 1 . . . 1 1 . Impact Weapon 2 | . . . . . . 1 1 . . . . . Slashing Weapon 1 | . . . . . . 1 . . . . . . Piercing Weapon . | . . . . . . . . . . . . . Special Melee Weapon 1 | . . . . . 1 . . . . . . . Unidentified Prototypes 13 | . 1 . . . . 2 . 1 . . 9 . Parts Lost 28 | . 6 3 . 1 . . 5 . 3 7 . 3 Power 3 | . . . . . . . . . . 1 . 2 Propulsion 17 | . 4 2 . . . . 3 . 3 5 . . Utility 7 | . 1 1 . 1 . . 2 . . 1 . 1 Weapon 1 | . 1 . . . . . . . . . . . Highest Loss Streak 4 | . 2 1 . 1 . . 4 . 2 3 . 2 To Critical Strikes 1 | . 1 . . . . . . . . . . . Average Backups 19 | 5 21 23 23 23 24 23 15 14 13 17 19 18 Power . | 1 1 2 1 1 1 . . . . . . . Propulsion 1 | 3 2 2 1 2 2 3 . 1 . . . . Utility 7 | . 6 7 7 5 5 6 7 6 5 8 11 10 Weapon 7 | 1 10 11 10 13 14 10 4 4 4 5 5 6 Tool/Special . | . . . . . . . . . . . . . Unused Backups 73 | 8 9 1 11 3 2 18 2 . . 8 1 10 Power 6 | 1 1 . 1 . . 2 . . . 1 . . Propulsion 7 | 5 . . . . . 2 . . . . . . Utility 32 | . 5 1 6 1 . 7 . . . 3 1 8 Weapon 27 | 2 3 . 4 2 2 7 2 . . 4 . 1 Tool/Special 1 | . . . . . . . . . . . . 1 Average Slot Usage (%) 83 | . 99 99 99 99 99 97 98 100 98 73 60 57 Engine 8 | . 14 14 11 11 11 11 8 13 13 5 1 . Core 3 | . . . . . . . 3 . . 6 . . Wheel 25 | . 27 27 43 44 44 44 39 40 38 14 5 4 Device 8 | . 10 11 11 10 11 10 5 7 5 6 2 12 Storage 8 | . 14 14 11 11 11 11 6 6 6 6 6 6 Processor 7 | . . . . . . . 12 13 13 13 13 6 Protection 2 | . 3 2 . . . . 1 4 6 4 4 5 Energy Gun 1 | . 5 . . . . 1 . . . 1 1 5 Energy Cannon 2 | . . . . . . . 5 6 5 3 5 . Ballistic Gun 2 | . 22 28 3 . . . . . . . . . Ballistic Cannon 2 | . . . 18 21 20 . . . . . . . Slashing Weapon 4 | . . . . . . 7 6 6 6 5 . 5 Special Melee Weapon 1 | . . . . . . 9 . . . . . . Peak Build Rating 68 | 7 15 15 20 21 21 39 62 58 59 62 67 68 Average Rating 42 | 5 12 14 18 19 20 24 57 55 55 56 61 62 On Entrance 32 | . 7 15 15 19 21 18 39 55 56 56 54 65 Naked Turns . | . . . . . . . . . . . . . Heaviest Build 123 | 15 97 97 98 98 98 100 123 61 64 90 96 61 Greatest Support 84 | 32 20 20 52 52 44 50 80 78 84 74 10 10 Greatest Overweight (x) 20 | . 9 9 3 2 2 2 1 . 1 20 9 6 Average Overweight (x) 3 | . 3 4 1 1 2 1 . . . 6 8 6 Largest Inventory Capacity 25 | 8 25 25 25 25 25 25 25 15 15 20 20 20 Average Capacity 20 | 7 24 25 25 25 25 25 15 15 15 18 20 20 Most Carried 25 | 8 25 25 25 25 25 25 24 15 15 20 20 20 Average Carried 20 | 6 22 24 24 24 24 23 15 14 14 18 19 19 Final Capacity 25 | 8 25 25 25 25 25 25 15 15 15 20 20 20 Final Carried 25 | 8 25 25 25 25 25 25 15 15 15 20 19 20 Class Distribution -------------------- 51% | Scavenger-Mutant 48% | Mutant Dominant Class ---------------- Mutant | -10/Materials Mutant | -10/Mines Scavenger-Mutant | -9/Materials Scavenger-Mutant | -9/Storage Mutant | -9/Recycling Mutant | -9/Scraptown Mutant | -6/Factory Scavenger-Mutant | -6/Lower Caves Scavenger-Mutant | -6/Lower Caves Scavenger-Mutant | -6/Zion Mutant | -6/Deep Caves Scavenger-Mutant | -5/Proximity Caves Resources | -11 -10 -10 -9 -9 -9 -9 -6 -6 -6 -6 -6 -5 ----------- Run | Yrd Mat Min Mat Sto Rec Scr Fac Low Low Zio Dee Pro Matter Collected 7689 | 330 1074 609 1160 678 67 172 472 60 68 2590 324 85 Remotely . | . . . . . . . . . . . . . Salvage Created 8926 | 349 926 386 951 846 44 600 940 406 516 2351 350 261 Parts 495 | 28 57 23 73 60 1 24 47 5 7 148 17 5 Haulers Intercepted 11 | . 2 . 4 5 . . . . . . . . Recyclers Shooed 4 | . . 2 . . . . 2 . . . . . Parts Field Recycled 43 | . . . . . . . . . . 43 . . Retrieved Matter 426 | . . . . . . . . . . 426 . . Parts Self-Destructed 15 | . . . . . . . . 1 4 5 . 5 Prevented . | . . . . . . . . . . . . . Kills | -11 -10 -10 -9 -9 -9 -9 -6 -6 -6 -6 -6 -5 ------- Run | Yrd Mat Min Mat Sto Rec Scr Fac Low Low Zio Dee Pro Combat Hostiles Destroyed 109 | . 26 8 17 18 1 10 6 . 4 9 6 4 Melee 5 | . . . . . . . 5 . . . . . Guns 61 | . 26 8 6 . . 10 . . . 9 . 2 Cannons 31 | . . . 11 18 1 . 1 . . . . . AOE 10 | . . . . . . . . . 4 . 6 . Classes Destroyed 25 | 3 5 1 4 1 1 4 . 1 . 4 1 . Worker 16 | 4 2 . 1 3 . . 6 . . . . . Builder 6 | . . . 4 . . . 2 . . . . . Tunneler 11 | 9 . 1 1 . . . . . . . . . Hauler 11 | . 2 . 4 5 . . . . . . . . Recycler 7 | 1 . 1 2 . . . 3 . . . . . Mechanic 2 | . . 1 . 1 . . . . . . . . Operator 3 | . . . 2 . . . 1 . . . . . Watcher 5 | . 2 . 1 1 . . 1 . . . . . Swarmer 19 | . 9 3 4 . . . . . 3 . . . Grunt 38 | . 14 5 4 8 . . 2 . 1 . . 4 Brawler 2 | . . . 1 1 . . . . . . . . Duelist 1 | . . . . 1 . . . . . . . . Sentry 17 | . . . 8 8 . . 1 . . . . . Programmer 4 | . . . . . 1 . 3 . . . . . Enhanced Grunt 2 | . . . . . . . . . . . 2 . Subdweller 3 | . 3 . . . . . . . . . . . Bolteater 3 | . . . . . . 3 . . . . . . Explorer 1 | . . . . . . 1 . . . . . . Guru 2 | . . . . . . 2 . . . . . . Scrapper 4 | . . . . . . 4 . . . . . . Zionite 74 | . . . . . . . . . . 74 . . Z-Light 6 | . . . . . . . . . . . 6 . Decomposer 3 | . . . . . . . . 2 1 . . . Packrat 6 | . . . . . . . . 3 3 . . . Tinkerer 7 | . . . . . . . . 1 . 6 . . Butcher 2 | . . . . . . . . . . 2 . . Martyr 1 | . . . . . . . . . . 1 . . Marauder 2 | . . . . . . . . . . 2 . . Mutant 5 | . . . . . . . . . . 5 . . Best Kill Streak 8 | 8 6 4 4 5 1 5 4 . 4 7 6 4 Combat Bots Only 6 | . 5 3 3 5 1 5 2 . 4 1 6 4 Max Kills in Single Turn 3 | 1 2 1 2 2 1 1 1 1 3 1 2 1 Gunslinging . | . . . . . . . . . . . . . Exploded 3 | . . . . . . . . . 3 . 2 . Melee 1 | . . . . . . . 1 . . . . . Uniques/NPCs Destroyed 1 | . . . . . . . . . . . 1 . Z-Imprinter (-6/Deep Caves) Combat | -11 -10 -10 -9 -9 -9 -9 -6 -6 -6 -6 -6 -5 -------- Run | Yrd Mat Min Mat Sto Rec Scr Fac Low Low Zio Dee Pro Hostile Shots Fired 651 | . 78 33 62 55 . 18 200 . 27 91 17 70 Missed 213 | . 20 7 20 20 . 8 64 . 8 31 6 29 Hits 438 | . 58 26 42 35 . 10 136 . 19 60 11 41 Melee 15 | . . . . 3 . . . . . 12 . . Projectile 423 | . 58 26 42 32 . 10 136 . 19 48 11 41 AOE 4 | . . . . . . . . . . 4 . . Critical Strikes 12 | . 3 . . 3 . . 1 . 1 1 . 3 Damage Taken 6298 | . 649 354 441 409 . 105 1296 10 383 1361 371 919 Core 1214 | . 87 89 32 115 . 28 236 10 58 181 126 252 Absorbed by Shields 235 | . 22 . 82 131 . . . . . . . . Redirected to Shielding 110 | . . . . . . . . . . 2 . 108 Regen/Repaired (Parts) 118 | . 28 . 90 . . . . . . . . . Core Remaining (%) 61 | 100 . 29 . . . 56 . . . . . . Volleys Fired 2027 | 23 71 28 76 73 6 21 43 7 22 1615 14 28 Largest 2 | 2 2 2 2 2 2 1 1 1 1 1 1 1 Hottest 120 | 100 100 46 66 100 66 120 85 85 85 120 39 120 Shots Fired 2297 | 46 142 56 145 143 13 21 45 7 22 1615 14 28 Gun 871 | 46 142 56 20 . . 20 . . . 559 . 28 Cannon 1370 | . . . 125 142 13 . 45 7 18 1020 . . Launcher 52 | . . . . . . . . . 4 36 12 . Special 4 | . . . . 1 . 1 . . . . 2 . Kinetic 709 | . 118 56 145 142 13 . . . . 229 . 6 Thermal 1526 | 46 24 . . 1 . 20 38 7 18 1350 . 22 Explosive 16 | . . . . . . . . . 4 . 12 . Electromagnetic 43 | . . . . . . . 7 . . 36 . . Robot Hit Streak 26 | 13 26 8 12 9 7 12 3 . 2 15 5 13 Robot Miss Streak 7 | 2 6 5 4 5 1 6 1 . 1 7 5 3 Penetration Max 1 | . . . . . . 1 . . . . . . Secondary Targets 3 | . 2 1 . . . . . . . . . . Max Gunslinging Chain 1 | . 1 1 . . . . . . . . . . Shots Hit Robots 719 | 29 112 37 80 77 12 23 36 12 18 248 8 27 Core Hits 370 | 15 57 23 34 31 3 21 20 2 13 102 25 24 Critical Kills 4 | . . . . . . . . . . 4 . . Critical Parts Destroyed 5 | . . 1 . . . . . . . 4 . . Critical Strikes 24 | 2 1 1 4 3 2 . . . . 11 . . Burn 3 | 2 1 . . . . . . . . . . . Meltdown 2 | . . . . . . . . . . 2 . . Destroy 8 | . . 1 . . . . . . . 7 . . Blast 9 | . . . 4 3 2 . . . . . . . Melee Attacks 94 | . . . . . 2 7 39 12 19 13 2 . Impact 5 | . . . . . . 3 2 . . . . . Slashing 83 | . . . . . . . 37 12 19 13 2 . Piercing . | . . . . . . . . . . . . . Sneak Attacks 34 | . . . . . 2 4 16 7 4 1 . . Combat Hostiles 1 | . . . . . . . 1 . . . . . Follow-up Attacks . | . . . . . . . . . . . . . Damage Inflicted 21073 | 365 1486 568 1631 1719 239 581 2145 1033 1808 7242 1230 1026 Guns 8837 | 365 1486 568 197 . . 581 . . . 4614 . 1026 Cannons 5393 | . . . 1434 1719 239 . 72 . . 1929 . . Explosions 1987 | . . . . . . . . . 694 245 1048 . Melee 4856 | . . . . . . . 2073 1033 1114 454 182 . Ramming . | . . . . . . . . . . . . . Kinetic 9992 | . 1262 568 1631 1719 239 . . . . 4432 . 141 Thermal 4166 | 365 224 . . . . 581 . . . 2111 . 885 Explosive 1742 | . . . . . . . . . 694 . 1048 . Electromagnetic 317 | . . . . . . . 72 . . 245 . . Impact . | . . . . . . . . . . . . . Slashing 4856 | . . . . . . . 2073 1033 1114 454 182 . Piercing . | . . . . . . . . . . . . . Highest Corruption 5 | . . . . 1 1 . 5 5 . . . . Average Corruption 1 | . . . . 1 1 . 2 2 . . . . Corruption Purged 5 | . . . . . . . . 5 . . . . Corruption Blocked . | . . . . . . . . . . . . . Effects 21 | . . . . 4 3 . 14 . . . . . Message Errors 2 | . . . . . 1 . 1 . . . . . Matter Fused 4 | . . . . 1 1 . 2 . . . . . Heat Flow Errors 4 | . . . . . . . 4 . . . . . Energy Discharges 3 | . . . . 1 . . 2 . . . . . Parts Rejected 2 | . . . . . . . 2 . . . . . Data Loss (minor) 1 | . . . . 1 . . . . . . . . Data Loss (major) 2 | . . . . 1 . . 1 . . . . . Misfires 3 | . . . . . 1 . 2 . . . . . Overload Shots . | . . . . . . . . . . . . . Overflow Damage 1810 | . . . 3 8 11 . 409 669 459 155 96 . Projectiles 140 | . . . 3 8 11 . . . . 118 . . Explosions 86 | . . . . . . . . . 44 . 42 . Melee 1584 | . . . . . . . 409 669 415 37 54 . Knockbacks 24 | . . . 15 6 3 . . . . . . . Impact . | . . . . . . . . . . . . . Kinetic 21 | . . . 12 6 3 . . . . . . . Secondary 3 | . . . 3 . . . . . . . . . Self-Inflicted Damage 60 | . . . . . . . . . 30 . 30 . Shots 2 | . . . . . . . . . 1 . 1 . Rammed . | . . . . . . . . . . . . . Targets Rammed . | . . . . . . . . . . . . . Kicked . | . . . . . . . . . . . . . Crushed . | . . . . . . . . . . . . . Highest Temperature 486 | 156 268 44 18 28 . 230 429 165 184 486 153 270 Average Temperature 62 | 59 72 20 9 10 . 76 82 79 74 60 79 201 Received Heat Transfer 1849 | . 469 162 153 153 . 60 321 . 135 54 108 234 Effects 6 | . 1 . . . . . 2 . . 3 . . Shutdowns 3 | . . . . . . . 2 . . 1 . . Energy Bleed 1 | . 1 . . . . . . . . . . . Damage (minor) 2 | . . . . . . . . . . 2 . . Siege Activations . | . . . . . . . . . . . . . Martial Activations . | . . . . . . . . . . . . . Shielding Activations . | . . . . . . . . . . . . . Robots Disrupted 1 | . . . . . . . . . . 1 . . Combat Hostiles 1 | . . . . . . . . . . 1 . . Robots Corrupted 1 | . . . . . . . . . . 1 . . Combat Hostiles . | . . . . . . . . . . . . . Parts Fried 2 | . . . . . . . 1 . . 1 . . Impact Corruptions . | . . . . . . . . . . . . . Robots Melted 4 | . . . . . . . . . . 2 . 2 Combat Hostiles 2 | . . . . . . . . . . . . 2 Parts Melted 22 | 3 3 . . . . 5 . . . 3 . 8 Heat Transferred 8449 | 1221 740 . . . . 1232 . . . 3331 . 1925 Parts Sabotaged . | . . . . . . . . . . . . . Parts Stolen . | . . . . . . . . . . . . . Parts Stripped . | . . . . . . . . . . . . . Power Chain Reactions 5 | . . . . . . . . . . 5 . . Alert | -11 -10 -10 -9 -9 -9 -9 -6 -6 -6 -6 -6 -5 ------- Run | Yrd Mat Min Mat Sto Rec Scr Fac Low Low Zio Dee Pro Maximum Alert Level 1 | . 1 . 1 1 . . . . . . . . Low Security (%) 87 | 100 87 100 95 49 100 . 100 . . . . . Level 1 12 | . 12 . 4 50 . . . . . . . . Level 2 . | . . . . . . . . . . . . . Level 3 . | . . . . . . . . . . . . . Level 4 . | . . . . . . . . . . . . . Level 5 . | . . . . . . . . . . . . . High Security . | . . . . . . . . . . . . . Max Security . | . . . . . . . . . . . . . Peak Influence 343 | 10 238 119 217 343 190 . 175 . . . . . Initial 100 | . . 84 . 46 100 . . . . . . . Average 101 | 1 108 54 104 174 110 . 75 . . . . . Influence Increases 3517 | 70 703 285 802 664 200 . 498 10 195 . . 90 Destroy 0b10 Robot/C 1740 | . 460 220 400 360 20 . 120 . 80 . . 80 Destroy 0b10 Robot/NC 340 | 70 30 15 85 50 . . 65 10 15 . . . Destroy Leader 464 | . 98 40 132 122 . . 52 . 10 . . 10 Allied During Kill 24 | . . 10 14 . . . . . . . . . Successful Hack 143 | . 25 . 41 28 . . 49 . . . . . Select Force Hacks 270 | . 60 . 30 . 180 . . . . . . . Disable Machine 120 | . . . 30 60 . . 30 . . . . . Destroy Structure 56 | . . . 10 14 . . 32 . . . . . Partial Spotted 60 | . . . . . . . 60 . . . . . Lose Combat Pursuer 300 | . 30 . 60 30 . . 90 . 90 . . . Influence Decreases 3517 | 70 487 501 692 516 388 70 363 145 124 71 . 90 Entered New Map 546 | . . 132 . 64 158 70 . 51 . 71 . . Time Decay 2571 | 70 427 299 502 442 230 . 313 94 114 . . 80 Lost Part 170 | . 60 30 . 10 . . 50 . 10 . . 10 Lost Ally 80 | . . 40 40 . . . . . . . . . Purge Threat 150 | . . . 150 . . . . . . . . . Squads Dispatched 16 | . 5 1 2 1 . . 7 . . . . . Investigation 8 | . 3 . 1 1 . . 3 . . . . . Extermination 3 | . . . . . . . 3 . . . . . Reinforcement 4 | . 2 . 1 . . . 1 . . . . . Assault 1 | . . 1 . . . . . . . . . . Garrison . | . . . . . . . . . . . . . Intercept . | . . . . . . . . . . . . . Searches Triggered . | . . . . . . . . . . . . . Construction Impeded . | . . . . . . . . . . . . . Haulers Reinforced . | . . . . . . . . . . . . . Active Scanning Responses . | . . . . . . . . . . . . . Cargo Convoy Interrupts . | . . . . . . . . . . . . . Stealth | -11 -10 -10 -9 -9 -9 -9 -6 -6 -6 -6 -6 -5 --------- Run | Yrd Mat Min Mat Sto Rec Scr Fac Low Low Zio Dee Pro Distress Signals 9 | . 2 1 . 4 1 . 1 . . . . . Communications Jammed . | . . . . . . . . . . . . . Distress Signals . | . . . . . . . . . . . . . Times Spotted 254 | . 37 15 31 24 5 20 21 . 9 78 9 5 Peak Tracking Total 9 | . 5 4 5 7 3 9 9 . 5 4 3 4 Tactical Retreats 23 | . 1 . 2 2 . 1 4 . 3 10 . . Traps | -11 -10 -10 -9 -9 -9 -9 -6 -6 -6 -6 -6 -5 ------- Run | Yrd Mat Min Mat Sto Rec Scr Fac Low Low Zio Dee Pro Traps Triggered 5 | . 1 . . 1 . . 3 . . . . . Indirectly . | . . . . . . . . . . . . . Trap Hack Attempts . | . . . . . . . . . . . . . Triggered . | . . . . . . . . . . . . . Disarmed . | . . . . . . . . . . . . . Reprogrammed . | . . . . . . . . . . . . . Reused . | . . . . . . . . . . . . . Traps Extracted . | . . . . . . . . . . . . . Installed . | . . . . . . . . . . . . . Triggered . | . . . . . . . . . . . . . Machines | -11 -10 -10 -9 -9 -9 -9 -6 -6 -6 -6 -6 -5 ---------- Run | Yrd Mat Min Mat Sto Rec Scr Fac Low Low Zio Dee Pro Machines Disabled 21 | . . . 2 4 . 3 2 . . 10 . . Max in Single Turn 1 | . . . 1 1 . 1 1 . . 1 . . Garrison Access 1 | . . . . . . . 1 . . . . . Machines Repaired . | . . . . . . . . . . . . . Machines Dismantled 3 | . . . . . . . . . . 3 . . Machines Sabotaged . | . . . . . . . . . . . . . Overloaded Fab Kills . | . . . . . . . . . . . . . Hacking | -11 -10 -10 -9 -9 -9 -9 -6 -6 -6 -6 -6 -5 --------- Run | Yrd Mat Min Mat Sto Rec Scr Fac Low Low Zio Dee Pro Machines Accessed 49 | . 9 . 10 7 10 3 9 1 . . . . Terminals 28 | . 6 . 6 7 4 . 4 1 . . . . Fabricators . | . . . . . . . . . . . . . Repair Stations 4 | . 1 . 1 . . . 2 . . . . . Recycling Units 9 | . 2 . 1 . 6 . . . . . . . Scanalyzers 4 | . . . 2 . . . 2 . . . . . Garrison Access 1 | . . . . . . . 1 . . . . . Total Hacks 131 | . 32 . 31 18 17 13 19 1 . . . . Successful 73 | . 16 . 20 6 8 13 9 1 . . . . Failed 57 | . 15 . 11 12 9 . 10 . . . . . Catastrophic 8 | . 2 . 1 1 2 . 2 . . . . . Database Lockouts 1 | . 1 . . . . . . . . . . . Manual 59 | . 19 . 13 3 15 . 8 . . 1 . . Terminals 84 | . 23 . 21 18 10 . 11 1 . . . . Fabricators . | . . . . . . . . . . . . . Repair Stations 9 | . 2 . 4 . . . 3 . . . . . Recycling Units 15 | . 7 . 1 . 7 . . . . . . . Scanalyzers 9 | . . . 5 . . . 4 . . . . . Garrison Access 1 | . . . . . . . 1 . . . . . Terminal Hacks 37 | . 4 . 5 6 2 13 6 1 . . . . Record 13 | . . . . . . 12 . 1 . . . . Part Schematic 3 | . . . . . 1 . 2 . . . . . Robot Schematic 1 | . 1 . . . . . . . . . . . Robot Analysis 1 | . . . . 1 . . . . . . . . Prototype ID Bank 5 | . 1 . 1 2 1 . . . . . . . Open Door 2 | . . . . 1 . 1 . . . . . . Branch Access Points 2 | . . . 1 . . . 1 . . . . . Emergency Access Points 1 | . 1 . . . . . . . . . . . Terminal Index 1 | . . . . . . . 1 . . . . . Scanalyzer Index 1 | . . . . . . . 1 . . . . . Unreport Threat 1 | . . . 1 . . . . . . . . . Locate Traps 3 | . . . 1 1 . . 1 . . . . . Hauler Manifests 2 | . 1 . . 1 . . . . . . . . Zone Layout 1 | . . . 1 . . . . . . . . . Fabricator Hacks . | . . . . . . . . . . . . . Repair Station Hacks 5 | . 2 . 3 . . . . . . . . . Scan Component 3 | . 1 . 2 . . . . . . . . . Repair 2 | . 1 . 1 . . . . . . . . . Recycling Unit Hacks 4 | . 3 . 1 . . . . . . . . . Retrieve Components 4 | . 3 . 1 . . . . . . . . . Scanalyzer 5 | . . . 4 . . . 1 . . . . . Insert Component 3 | . . . 2 . . . 1 . . . . . Analyze 2 | . . . 2 . . . . . . . . . Garrison Access Hacks 1 | . . . . . . . 1 . . . . . Seal Access 1 | . . . . . . . 1 . . . . . Unauthorized Hacks 21 | . 7 . 7 . 6 . 1 . . . . . Terminals 11 | . 5 . 6 . . . . . . . . . Assimilate 1 | . . . 1 . . . . . . . . . Skim 10 | . 5 . 5 . . . . . . . . . Fabricators . | . . . . . . . . . . . . . Repair Stations 1 | . . . . . . . 1 . . . . . Mechanics 1 | . . . . . . . 1 . . . . . Recycling Units 8 | . 2 . . . 6 . . . . . . . Tunnel 8 | . 2 . . . 6 . . . . . . . Scanalyzers 1 | . . . 1 . . . . . . . . . Extract 1 | . . . 1 . . . . . . . . . Garrison Access . | . . . . . . . . . . . . . Data Cores Recovered 1 | . . . 1 . . . . . . . . . Used 1 | . . . 1 . . . . . . . . . Hacking Detections 36 | . 7 . 10 7 4 . 7 1 . . . . Full Trace Events 3 | . . . . 1 . . 2 . . . . . Feedback Events 1 | . . . . . . . 1 . . . . . Corruption 1 | . . . . . . . 1 . . . . . Feedback Blocked . | . . . . . . . . . . . . . Robot Schematics Acquired 5 | . 1 . . . . . . . . 4 . . Robots Built . | . . . . . . . . . . . . . Authchips . | . . . . . . . . . . . . . Time . | . . . . . . . . . . . . . Total Robot Build Rating . | . . . . . . . . . . . . . Part Schematics Acquired 24 | . . . 6 . 1 . 2 . . 15 . . Parts Built . | . . . . . . . . . . . . . Authchips . | . . . . . . . . . . . . . Time . | . . . . . . . . . . . . . Total Part Build Rating . | . . . . . . . . . . . . . Parts Repaired 2 | . 1 . 1 . . . . . . . . . Time 42 | . 26 . 16 . . . . . . . . . Parts Recycled . | . . . . . . . . . . . . . Recycled Matter . | . . . . . . . . . . . . . Retrieved Matter . | . . . . . . . . . . . . . Retrieved Components 28 | . 21 . 7 . . . . . . . . . Parts Scanalyzed 3 | . . . 2 . . . 1 . . . . . Part Schematics Acquired 2 | . . . 2 . . . . . . . . . Parts Damaged . | . . . . . . . . . . . . . Bothacking | -11 -10 -10 -9 -9 -9 -9 -6 -6 -6 -6 -6 -5 ------------ Run | Yrd Mat Min Mat Sto Rec Scr Fac Low Low Zio Dee Pro Used RIF Installer . | . . . . . . . . . . . . . Robots Hacked 6 | . . . . . 2 4 . . . . . . Non-combat 1 | . . . . . 1 . . . . . . . Combat 5 | . . . . . 1 4 . . . . . . Robot Hacks Applied 6 | . . . . . 2 4 . . . . . . parse_system 6 | . . . . . 2 4 . . . . . . Relay Couplers Released . | . . . . . . . . . . . . . Fabnet Peak Effective % . | . . . . . . . . . . . . . Robots Rewired 1 | . . . . . . . . . . 1 . . Allies Hacked . | . . . . . . . . . . . . . Hacks Repelled . | . . . . . . . . . . . . . Allies | -11 -10 -10 -9 -9 -9 -9 -6 -6 -6 -6 -6 -5 -------- Run | Yrd Mat Min Mat Sto Rec Scr Fac Low Low Zio Dee Pro Total Allies 8 | . . 4 . . . 1 . . . 3 . . Largest Group 4 | . . 4 2 . . 1 . . . 2 2 . Highest-Rated Group 192 | . . 71 32 . . 55 . . . 192 192 . Highest-Rated Ally 96 | . . 31 16 . . 55 . . . 96 96 . Total Orders 1 | . . . . . . . . . . 1 . . FOLLOW 1 | . . . . . . . . . . 1 . . Ally Attacks 76 | . . 13 17 . . 24 . . . . 22 . Total Damage 1674 | . . 174 177 . . 687 . . . . 636 . Kills 15 | . . 3 5 . . 4 . . . . 3 . Allies Corrupted . | . . . . . . . . . . . . . Allies Melted 3 | . . . . . . 3 . . . . . . Intel | -11 -10 -10 -9 -9 -9 -9 -6 -6 -6 -6 -6 -5 ------- Run | Yrd Mat Min Mat Sto Rec Scr Fac Low Low Zio Dee Pro Active Infowar (turns) 17493 | 28 756 . . . . . 1001 398 597 12060 2355 298 Optics 16649 | . . . . . . . 941 398 597 12060 2355 298 Sensors 44 | . 44 . . . . . . . . . . . Seismic 740 | 28 712 . . . . . . . . . . . Machine Analysis 62 | . . . . . . . 62 . . . . . Robot Analysis Total 1 | . . . . 1 . . . . . . . . Derelict Logs Recovered 10 | . . 3 . . . 3 . 1 3 . . . Drone Launches . | . . . . . . . . . . . . . Drone Recoveries . | . . . . . . . . . . . . . Exploration | -11 -10 -10 -9 -9 -9 -9 -6 -6 -6 -6 -6 -5 ------------- Run | Yrd Mat Min Mat Sto Rec Scr Fac Low Low Zio Dee Pro Turns Passed 27492 | 392 1696 830 1498 1163 490 4711 1004 398 597 12060 2355 298 Spaces Moved 14545 | 192 887 514 952 706 398 3677 1205 521 772 3522 1063 136 Core 297 | 6 . . . . . . . . . 291 . . Treads . | . . . . . . . . . . . . . Legs . | . . . . . . . . . . . . . Wheels 14248 | 186 887 514 952 706 398 3677 1205 521 772 3231 1063 136 Hover . | . . . . . . . . . . . . . Flight . | . . . . . . . . . . . . . Fastest Speed 48 | 50 80 140 105 105 115 105 48 51 51 54 170 170 Average Speed 141 | 87 138 140 113 110 115 114 51 51 53 231 206 170 Slowest Speed 1050 | 100 215 215 125 117 115 117 101 90 110 1050 215 170 Overloaded Moves . | . . . . . . . . . . . . . Propulsion Burnouts . | . . . . . . . . . . . . . Robots Hopped . | . . . . . . . . . . . . . Potential Cave-ins . | . . . . . . . . . . . . . Cave-ins Triggered . | . . . . . . . . . . . . . Exploration Rate (%) 70 | 6 98 91 72 82 85 92 28 60 92 88 79 37 Regions Visited 12 Branch Regions 9 Pre-discovered Areas 11 | . 2 1 1 . 6 1 . . . . . . Known Exits Taken 4 | . . 1 1 . . . 1 1 . . . . Unknown Exits Taken 8 | 1 1 . . 1 1 1 . . 1 1 1 . Scrap Searched 18 | . . 1 . . . 8 . 3 2 4 . . Spaces Dug 149 | . . . 2 . . 2 28 3 19 95 . . Terrain Destroyed 405 | . . . 6 7 . 3 38 7 69 224 42 9 Melee 4 | . . . . . . 2 2 . . . . . Projectile 295 | . . . 6 7 . . 36 7 18 218 . 3 AOE 96 | . . . . . . . . . 51 3 42 . Terrain Rammed . | . . . . . . . . . . . . . Walls Destroyed . | . . . . . . . . . . . . . Machines Disabled . | . . . . . . . . . . . . . Actions | -11 -10 -10 -9 -9 -9 -9 -6 -6 -6 -6 -6 -5 --------- Run | Yrd Mat Min Mat Sto Rec Scr Fac Low Low Zio Dee Pro Total 19045 | 378 1218 572 1241 951 419 4153 1488 630 908 5701 1211 175 Wait 1620 | 119 182 14 142 142 8 351 122 80 77 308 74 1 Move 14533 | 191 886 513 951 705 397 3676 1204 520 771 3521 1062 136 Hop . | . . . . . . . . . . . . . Pick Up 204 | 19 38 6 25 8 1 40 10 1 6 39 10 1 Fast Attach 46 | 6 1 1 1 . . 1 13 1 . 15 7 . Attach 69 | 3 9 2 3 2 1 3 7 2 5 20 9 3 Detach 23 | . 1 . . . 2 1 1 1 . 11 4 2 Swap 171 | 4 11 2 14 9 . 13 21 2 3 77 12 3 Drop 225 | 13 19 6 29 12 2 40 29 4 5 48 17 1 Fire 2027 | 23 71 28 76 73 6 21 43 7 22 1615 14 28 Melee 93 | . . . . . 2 7 38 12 19 13 2 . Ram . | . . . . . . . . . . . . . Kick . | . . . . . . . . . . . . . Crush . | . . . . . . . . . . . . . Escape Stasis . | . . . . . . . . . . . . . Rewire 7 | . . . . . . . . . . 7 . . Trap . | . . . . . . . . . . . . . Miscellaneous 27 | . . . . . . . . . . 27 . . Route ------- -11/Scrapyard -10/Materials (discovered 5 exits: *Mat x3 / [*Min] / [*Sub]) -10/Mines (discovered 2 exits: *Mat x2) -9/Materials (discovered 5 exits: *Mat x3 / *Min / *Sto) -9/Storage (discovered 2 exits: *Mat / *Rec) -9/Recycling -9/Scraptown (discovered 2 exits: *Fac x2) -6/Factory (discovered 4 exits: *Low x2 / Ext x2) -6/Lower Caves -6/Lower Caves (discovered 2 exits: [*Fac] / *Zio) -6/Zion (discovered 2 exits: [*Dee] / [*Pro]) -6/Deep Caves -5/Proximity Caves History --------- Turn | Location | Event 20 | -11/Scrapyard | Discovered new exit (range 15) 393 | -11/Scrapyard | Entered Materials 408 | -10/Materials | Build established: Mutant 580 | -10/Materials | Discovered new exit (range 11) 624 | -10/Materials | Discovered new exit (range 16) 1122 | -10/Materials | Discovered new exit (range 10) 1210 | -10/Materials | Discovered new exit (range 10) 1243 | -10/Materials | Central database locked down 1384 | -10/Materials | Discovered new exit (range 12) 1473 | -10/Materials | Learned 2 Storage zone layouts 1525 | -10/Materials | Loaded intel: 6 trap records 1569 | -10/Materials | Learned 2 Mines zone layouts 1593 | -10/Materials | Derelicts attacked the area 1604 | -10/Materials | Learned Storage garrison access intel 1627 | -10/Materials | Learned location of 2 exits from Subcaves 1660 | -10/Materials | Learned Materials trap positions 1862 | -10/Materials | Repaired Wheel 2089 | -10/Materials | Entered Mines 2141 | -10/Mines | Discovered new exit (range 13) 2254 | -10/Mines | Core integrity fell below 50% 2277 | -10/Mines | Learned location of Zion (-6) 2415 | -10/Mines | Learned Materials emergency access door positions 2437 | -10/Mines | Identified exit to Materials 2442 | -10/Mines | Met a Derelict testing a Signal Generator 2454 | -10/Mines | Assisted by bots powering up and referring to "LRC-V3" 2919 | -10/Mines | Entered Materials 2919 | -9/Materials | Accompanied by 2 allies 2919 | -9/Materials | Evolved 2 slots: Propulsion x2 2920 | -9/Materials | Loaded intel: 12 trap records 3025 | -9/Materials | Discovered new exit (range 4) 3232 | -9/Materials | Build established: Scavenger-Mutant 3334 | -9/Materials | Discovered new exit (range 16) 3725 | -9/Materials | Repaired Imp. Light Cannon 3745 | -9/Materials | Discovered new exit (range 16) 4043 | -9/Materials | Discovered new exit (range 10) 4082 | -9/Materials | Identified exit to Mines 4082 | -9/Materials | Identified exit to Storage 4250 | -9/Materials | Identified exit to Materials 4250 | -9/Materials | Learned location of 1 exit from Materials 4378 | -9/Materials | Learned Storage emergency access door positions 4417 | -9/Materials | Entered Storage 4420 | -9/Storage | Loaded intel: 1 garrison access location 4858 | -9/Storage | Used back door to open Recycling access 4858 | -9/Storage | Discovered new exit (range 5) 5336 | -9/Storage | Build established: Mutant 5360 | -9/Storage | Met 01-MTF 5580 | -9/Storage | Entered Recycling 5580 | -9/Recycling | Accompanied by 1 ally (01-MTF) 5581 | -9/Recycling | Joined Warlord attack on 0b10 via Recycling 6020 | -9/Recycling | Scanned before Scraplab entrance 6049 | -9/Recycling | Found Prototype Energy Gun 6058 | -9/Recycling | Entered Scraplab 6069 | -9/Recycling | Discovered new exit (range 2) 6070 | -9/Recycling | Entered Scraptown 6070 | -9/Scraptown | System corruption cleaned by C-Scrubber 6072 | -9/Scraptown | Identified KN-7UR's Autopenetrator 6318 | -9/Scraptown | Discovered new exit (range 11) 6347 | -9/Scraptown | Scanned Subdweller tech in exchange for log data 6349 | -9/Scraptown | Learned Research trap positions 6351 | -9/Scraptown | Learned location of 2 exits from Research 6423 | -9/Scraptown | Visited Assassins FH 6433 | -9/Scraptown | Visited Red Mages 6454 | -9/Scraptown | Visited Spacefarers 6572 | -9/Scraptown | Visited Shadow of the Wyrm 6591 | -9/Scraptown | Visited TADAMA 6790 | -9/Scraptown | Visited Cave Peace 6821 | -9/Scraptown | Visited Awakened 6852 | -9/Scraptown | Received an X-ray algorithm 6857 | -9/Scraptown | Visited UFD Registry 6872 | -9/Scraptown | Registered with UFD as "Matrixtail" 6909 | -9/Scraptown | Visited Sword Containment 6952 | -9/Scraptown | Visited Scrap Suit Storage 6973 | -9/Scraptown | Visited Abandonware Association 6985 | -9/Scraptown | Learned abandonware demo "MELTYB.EXE" 7012 | -9/Scraptown | Visited DA-N13 Charitable Foundation 7022 | -9/Scraptown | Found DCF Scrap (29 items) 7039 | -9/Scraptown | Visited Infowarlord's Domain 7055 | -9/Scraptown | Visited Supply Room 7077 | -9/Scraptown | Visited Botcube Research 7113 | -9/Scraptown | Visited Chapter 10 7145 | -9/Scraptown | Visited Curators Association 7234 | -9/Scraptown | Delivered Scrap Shield to a Scientist 7408 | -9/Scraptown | Found Spectral Analyzer 7521 | -9/Scraptown | Discovered new exit (range 5) 9399 | -9/Scraptown | Found Botcube 9462 | -9/Scraptown | Botcube activated 9486 | -9/Scraptown | Botcube completed mutation into legged form, armed with 2 cannons. 10117 | -9/Scraptown | Met Optimus 10117 | -9/Scraptown | Accepted into 0bPrime 10517 | -9/Scraptown | Civil war broke out across Scraptown 10554 | -9/Scraptown | Lost 3 allies 10712 | -9/Scraptown | Optimus destroyed in the chaos of civil war 10781 | -9/Scraptown | Entered Factory 10781 | -6/Factory | Evolved 6 slots: Power x1, Propulsion x2, Utility x3 10783 | -6/Factory | Lost 4 allies 10952 | -6/Factory | Discovered new exit (range 7) 10963 | -6/Factory | Identified exit to Lower Caves 10963 | -6/Factory | Identified exit to Extension 11603 | -6/Factory | Spotted B-75 Beast 11698 | -6/Factory | Lost 4 parts (2n2u) 11785 | -6/Factory | Entered Lower Caves 11787 | -6/Lower Caves | UFD Scientist delivered a prototype 11884 | -6/Lower Caves | Found Prototype Protection 11884 | -6/Lower Caves | Identified Enh. Scrap Shield 11999 | -6/Lower Caves | Identified exit to Lower Caves 12003 | -6/Lower Caves | Build established: Scavenger-Mutant 12183 | -6/Lower Caves | Entered another Lower Caves area 12186 | -6/Lower Caves | Discovered new exit (range 18) 12270 | -6/Lower Caves | Learned Factory stockpile data 12332 | -6/Lower Caves | Learned Factory emergency access door positions 12653 | -6/Lower Caves | Learned Factory security intel 12712 | -6/Lower Caves | Discovered new exit (range 8) 12780 | -6/Lower Caves | Entered Zion 12813 | -6/Zion | Discovered new exit (range 14) 12821 | -6/Zion | Given A8's code to call for help 15990 | -6/Zion | Attacked by Zionites 16021 | -6/Zion | Spotted 8E-RZ0(B) 16038 | -6/Zion | Spotted ZX-ONM(B) 16122 | -6/Zion | Destroyed 8E-RZ0(B) 16140 | -6/Zion | Lost 3 parts (1p2n) 16266 | -6/Zion | Destroyed ZX-ONM(B) 17543 | -6/Zion | Core integrity fell below 50% 19474 | -6/Zion | Build established: Mutant 20115 | -6/Zion | Build established: Scavenger-Mutant 21326 | -6/Zion | Build established: Mutant 21815 | -6/Zion | Build established: Scavenger-Mutant 23029 | -6/Zion | Found Prototype Launcher 23267 | -6/Zion | Identified Gui. Missile Launcher 24538 | -6/Zion | Found Relay Coupler [Programmer] 24547 | -6/Zion | Found Relay Coupler [Programmer] 24557 | -6/Zion | Found Relay Coupler [Programmer] 24733 | -6/Zion | Enhanced Grunt warped into view, answering call for help 24736 | -6/Zion | Enhanced Grunt warped into view, answering call for help 24824 | -6/Zion | Discovered new exit (range 5) 24833 | -6/Zion | Saw the warning signs outside the Deep Caves entrance 24840 | -6/Zion | Entered Deep Caves 24840 | -6/Deep Caves | Accompanied by 2 allies 25138 | -6/Deep Caves | Attacked by Z-Imprinter 25147 | -6/Deep Caves | Allies destroyed Z-Imprinter 25215 | -6/Deep Caves | Found Prototype Protection 25215 | -6/Deep Caves | Identified Zio. Weapon Casing 25325 | -6/Deep Caves | Z-Facility disabled 25456 | -6/Deep Caves | Found Zio. Weapon Casing 25911 | -6/Deep Caves | Build established: Mutant 26232 | -6/Deep Caves | Discovered new exit (range 7) 26343 | -6/Deep Caves | Spotted AG-92755 26378 | -6/Deep Caves | Spotted AG-90640 27195 | -6/Deep Caves | Entered Proximity Caves 27437 | -5/Proximity Caves | Spotted B-75 Beast 27438 | -5/Proximity Caves | Core integrity fell below 20% 27458 | -5/Proximity Caves | Build established: Scavenger-Mutant 27493 | -5/Proximity Caves | Destroyed by B-75 Beast with Magnetic Acceleration Cannon Last Messages --------------- 27470_ Thermabolt penetrates Wall. 27470_ Thermabolt penetrates B-75 Beast. 27472_ Wall collapses. 27472_ Thermabolt penetrates B-75 Beast. 27472_ Thermabolt penetrates Wall. 27472_ Thermabolt penetrates B-75 Beast. 27474_ Thermabolt penetrates Wall. 27474_ Thermabolt penetrates B-75 Beast. 27477_ Zio. Light DM Reactor destroyed. 27478_ Thermabolt penetrates B-75 Beast. 27478_ Thermabolt penetrates Wall. 27478_ Thermabolt penetrates B-75 Beast. 27478_ Thermabolt penetrates Wall. 27478_ Thermabolt penetrates B-75 Beast. 27478_ Thermabolt penetrates Wall. 27479_ Wall collapses. 27482_ Slug penetrates Wall. 27483_ Exp. Heat Sink destroyed. 27484_ Slug penetrates B-75 Beast. 27493_ Spectral Analyzer blasted off. Map ----- +----------------------------------------------------+ | ?????????????????????????????????????????????????? | | ?????????????????????????????????????????????????? | | ?????????????????????????????????????????????????? | | ??????????????????????????? ???????????????????? | | ??????????????????? ????? ????????????????????? | | ???????????######?? ????? ????????????????????? | | ??????????? #?? ????# ????????????????????? | | ###???????? #??? ???# ?????????????????????? | | ??????? #??? ### ?????????????????????? | | ? ?????? ???? ?????????????????????? | | ?? ?????? ???? #?????????????????????? | | ??? ????? ????? ##????????????????????? | | ???? ???## #????? ##???????????????????? | | ?????# ??# #????? ##??????????????????? | | ?????# #?# #?????? #??????????????????? | | ?????# ## ??????? #??????????????????? | | ???# ??????? ???????????????????? | | ## ????????# ????????????????????? | | "????????# #?????????????????????? | | ##???????# #?????????????????????? | | ##?????## #?????????????????????? | | # %BB;###?## #?????????????????????? | | ## ####BB ;;# #?????????????????????? | | ?### #??#;;; ##?????????????????????? | | ???## #??#### ;;;%###########???????????? | | ?????# #??# @% #????? | | #????# #??# #????? | | ????# #??## #;#;%##;###############?????? | | ???# ##??## ###?####??#???????????????????? | | ??## ##??## ##?????????????????????????????? | | ??## ###?# ###??????????????????????????????? | | ?## #?# #????????????????????????????????? | | #?# #?# ##########???????????????????????? | | ### #?# #???????????????????????? | | ## #?## ###### #???????????????????????? | | #??# #??????????????????????????????? | | #??# #??????????????????????????????? | | #??# #??????????????????????????????? | | " ##?# #??????????????????????????????? | | " ### #####??????????????????????????? | | " #??????????????????????????? | | ## #??????????????????????????? | | ##### ## #??????????????????????????? | | " ##??### ## ### #??????????????????????????? | | #????# ######?# #??????????????????????????? | | #????# #??????# #??????????????????????????? | | #???? ??????# ??????????????????????????? | | #???## ?????# #??????????????????????????? | | #???" #????# #??????????????????????????? | | #???" #????# #??????????????????????????? | +----------------------------------------------------+ Best States ------------- Heat Dissipation 89 Energy Generation 43 Energy Capacity 520 Matter Stores 300 Matter Capacity 300 Sight Range 24 Robot Scan Range 14 Terrain Scan Density 10 Armor Coverage 800 Resistance: KI 20 Propulsion Shielding 15 Weapon Shielding 100 Melee Speed Boost 20 Evasion (%) 50 Melee Accuracy 8 Offensive Hacking 12 Item Schematics ----------------- Com. Wheel | -9/Materials | Scanalyzed Particle Cannon | -9/Materials | Extracted Hcp. Storage Unit | -9/Materials | Extracted Beam Rifle | -9/Materials | Extracted Seismic Detector | -9/Materials | Extracted Imp. Light Cannon | -9/Materials | Scanalyzed Assault Rifle | -9/Recycling | Hacked Arm. Huge Wheel | -6/Factory | Hacked Adv. Melee Analysis Suite | -6/Factory | Hacked Field Propulsion Drive | -6/Zion | Archive Power Sword | -6/Zion | Archive Enh. Gauss Cannon | -6/Zion | Archive Flexi-carbon Leg | -6/Zion | Archive Imp. Antigrav System | -6/Zion | Archive Lgt. Fission Core | -6/Zion | Archive Antigrav System | -6/Zion | Archive Arm. Leg | -6/Zion | Archive Adv. Trap Extractor | -6/Zion | Archive Imp. Thermal Generator | -6/Zion | Archive Adv. Hardlight Generator | -6/Zion | Archive Lance | -6/Zion | Archive Proton Cannon | -6/Zion | Archive Hyp. Gauss Rifle | -6/Zion | Archive Adv. Shield Generator | -6/Zion | Archive Robot Schematics ------------------ M-13 Machinist | -10/Materials | Hacked X-77 Beamer | -6/Zion | Archive Y-54 Guardian | -6/Zion | Archive T-07 Excavator | -6/Zion | Archive R-06 Scavenger | -6/Zion | Archive Fabricated ------------ Nothing Repaired ---------- Wheel | 30% | -10/Materials Imp. Light Cannon | 33% | -9/Materials Alien Tech Used ----------------- None Achievements -------------- None Challenges ------------ None Game ------ Seed OpticalReflectiveAutogun Manual? 0 Play Time 04:05:09 Cumulative 1260.1 hours Start 2025.08.16 @ 23:51:22 End 2025.08.17 @ 15:33:51 Sessions 3 Manual Loads 0 Difficulty Rogue Special Mode None Game No. 599 Rogue 599 Adventurer 0 Explorer 0 Win Type - Total 23 Types 10/4/3/0/1/1/2/2/0/0 Lore% 91 Gallery% 90 Achievement% 84 Wizard Run 0 Options --------- Layout 0 ASCII 0 Keyboard 0 Movement Numpad Keybinds 0 Fullscreen 2 Font 24/Smallcaps Map View 76x50 Zoom Use 0% Tactical HUD 1 Map Filters NONE Filters SHIFT_HUE(315) Steam 1 RUN: 30226633-36b4-4964-a029-5831365317af